bitfinex/quotes_SOLUSD_20251128
["timestamp","ask_amount","ask_price","bid_price","bid_amount"]
[1764312583705,0.71,139.64,139.61,25.68096902]
[1764312585094,0.71,139.64,139.62,9.37144071]
[1764312587808,0.71,139.65,139.63,2.20944341]
[1764312587976,0.71,139.65,139.64,2.20944341]
[1764312589201,0.71,139.65,139.63,2.20944341]
[1764312589603,0.71,139.65,139.63,9.37096211]
[1764312592309,0.71,139.65,139.64,2.20944341]
[1764312595005,0.71,139.65,139.63,9.37093191]
[1764312597405,0.71,139.65,139.62,25.06804182]
[1764312597606,0.71,139.65,139.63,2.20944341]
[1764312598802,3.85,139.66,139.64,2.20944341]
[1764312599435,3.85,139.66,139.64,9.37042908]
[1764312600408,0.71,139.68,139.65,2.20944341]
[1764312600589,0.71,139.69,139.67,2.20944341]
[1764312601712,0.71,139.69,139.66,9.36927201]
[1764312602388,0.71,139.69,139.67,2.20944341]
[1764312603407,0.71,139.69,139.68,7.15922107]
[1764312604490,3.85,139.7,139.68,9.36866448]
[1764312604808,3.85,139.7,139.69,2.20944341]
[1764312605216,3.85,139.7,139.68,9.36866448]
[1764312605990,0.71,139.69,139.68,9.36866448]
[1764312607415,3.85,139.7,139.68,9.36866448]
[1764312607795,3.14,139.7,139.69,2.20944341]
[1764312609012,3.85,139.7,139.69,9.36815197]
[1764312610405,0.71,139.7,139.69,9.36815197]
[1764312612304,10.2967086,139.73,139.69,9.36815197]
[1764312612501,0.66,139.71,139.69,9.36815197]
[1764312614020,0.66,139.71,139.7,2.20944341]
[1764312616414,0.66,139.71,139.7,9.36763954]
[1764312618404,0.69,139.72,139.7,9.36763954]
[1764312618605,0.69,139.72,139.71,2.20944341]
[1764312619512,0.69,139.72,139.71,9.36712718]
[1764312619722,0.69,139.72,139.71,2.20944341]
[1764312621528,0.69,139.72,139.71,9.36712718]
[1764312625830,0.2,139.74,139.71,9.46712718]
[1764312626034,0.2,139.74,139.73,2.20944341]
[1764312626035,0.89,139.74,139.73,2.20944341]
[1764312627414,0.2,139.74,139.73,2.20944341]
[1764312627810,0.2,139.74,139.73,9.36610268]
[1764312628535,0.89,139.74,139.73,10.60038122]
[1764312632340,0.2,139.74,139.73,10.60038122]
[1764312634845,0.89,139.74,139.73,10.60038122]
[1764312637317,0.2,139.74,139.73,10.60038122]
[1764312637515,0.89,139.74,139.72,16.308864]
[1764312637738,0.89,139.74,139.71,3.44372195]
[1764312637940,0.69,139.73,139.71,3.44372195]
[1764312639334,0.69,139.73,139.71,10.60115685]
[1764312640336,0.69,139.73,139.71,7.1574349]
[1764312641725,0.69,139.73,139.71,10.60115685]
[1764312643241,0.69,139.73,139.71,7.1574349]
[1764312643849,0.69,139.73,139.71,10.60115685]
[1764312645150,7.84672221,139.73,139.68,23.94910988]
[1764312645333,3.14,139.72,139.69,3.44372195]
[1764312645539,3.82,139.72,139.69,3.44372195]
[1764312645739,0.68,139.71,139.69,3.44372195]
[1764312651262,0.68,139.71,139.69,10.60238472]
[1764312653451,0.68,139.71,139.7,3.44372195]
[1764312654957,0.68,139.71,139.69,10.60238472]
[1764312656463,0.68,139.71,139.7,3.44372195]
[1764312658973,0.68,139.71,139.69,10.60238472]
[1764312661642,0.68,139.71,139.68,16.308864]
[1764312661860,0.68,139.71,139.69,3.44372195]
[1764312663546,0.68,139.71,139.68,26.91165921]
[1764312669061,0.68,139.71,139.69,3.44372195]
[1764312670563,0.68,139.71,139.7,10.60191808]
[1764312670760,3.14,139.72,139.7,10.60191808]
[1764312670956,0.69,139.71,139.7,10.60191808]
[1764312673458,3.14,139.72,139.7,10.60191808]
[1764312673658,3.82,139.72,139.7,10.60191808]
[1764312677782,0.68,139.71,139.7,7.15819613]
[1764312678678,0.68,139.71,139.69,3.44372195]
[1764312678679,0.68,139.71,139.69,10.60222399]
[1764312679458,3.82,139.72,139.7,3.44372195]
[1764312679663,0.68,139.71,139.69,10.60222399]
[1764312686093,7.83771831,139.71,139.68,23.46558603]
[1764312686395,7.83771831,139.71,139.68,7.15672203]
[1764312686565,0.68,139.7,139.67,3.44372195]
[1764312686765,0.68,139.7,139.67,19.75258595]
[1764312687987,0.68,139.7,139.67,26.91229311]
[1764312688188,0.68,139.7,139.68,3.44372195]
[1764312690597,0.68,139.7,139.68,9.36490574]
[1764312692099,0.68,139.7,139.67,23.46848348]
[1764312692270,0.68,139.7,139.67,25.67419725]
[1764312692473,0.68,139.7,139.68,2.20571377]
[1764312692677,0.68,139.7,139.67,25.67419725]
[1764312693200,0.68,139.7,139.68,2.20571377]
[1764312693683,0.68,139.7,139.67,25.67419725]
[1764312695876,0.68,139.7,139.68,9.36481741]
[1764312697196,0.68,139.7,139.69,2.20571377]
[1764312698874,0.68,139.7,139.68,9.36481741]
[1764312699595,3.82,139.72,139.69,2.20571377]
[1764312699893,3.14,139.72,139.71,2.20571377]
[1764312700293,3.82,139.72,139.71,2.20571377]
[1764312702404,3.82,139.72,139.71,9.36339754]
[1764312704486,3.14,139.72,139.71,9.36339754]
[1764312705782,3.84,139.72,139.71,9.36339754]
[1764312708008,3.14,139.72,139.71,9.36339754]
[1764312709090,0.2,139.74,139.71,9.36339754]
[1764312709297,0.7,139.73,139.72,2.20571377]
[1764312710285,0.7,139.73,139.72,9.36288525]
[1764312716306,0.7,139.73,139.71,10.29748243]
[1764312716514,0.7,139.73,139.71,7.15748243]
[1764312717497,0.7,139.73,139.7,7.15806518]
[1764312720197,0.7,139.73,139.7,9.36377895]
[1764312722526,0.7,139.73,139.71,2.20571377]
[1764312722704,0.2,139.74,139.72,2.20571377]
[1764312722905,0.9,139.74,139.73,2.20571377]
[1764312724822,0.2,139.74,139.73,9.36237304]
[1764312725028,0.9,139.74,139.73,7.15665927]
[1764312727307,0.2,139.74,139.73,9.36237304]
[1764312727501,0.2,139.74,139.73,9.46237304]
[1764312727714,0.2,139.74,139.73,12.80237304]
[1764312728114,0.2,139.74,139.73,29.11123704]
[1764312730615,0.2,139.74,139.73,26.80552327]
[1764312730933,0.2,139.74,139.73,29.11123704]
[1764312732029,0.2,139.74,139.73,29.01123704]
[1764312734340,0.2,139.74,139.73,26.80552327]
[1764312734642,0.87,139.74,139.73,29.01123704]
[1764312734941,0.2,139.74,139.73,29.01123704]
[1764312736026,0.87,139.74,139.73,29.01123704]
[1764312736227,0.2,139.74,139.73,29.01123704]
[1764312742443,0.2,139.74,139.73,32.25123704]
[1764312743414,0.2,139.74,139.73,26.80552327]
[1764312743615,0.2,139.74,139.73,29.01123704]
[1764312743839,0.87,139.74,139.73,29.01123704]
[1764312750552,0.87,139.74,139.73,30.24884413]
[1764312754749,0.2,139.74,139.73,30.34884413]
[1764312755053,0.2,139.74,139.73,14.03998013]
[1764312755840,0.87,139.79,139.76,16.308864]
[1764312756051,0.87,139.79,139.78,3.44332086]
[1764312756545,0.87,139.79,139.78,13.46305757]
[1764312757337,0.2,139.79,139.78,13.46305757]
[1764312757730,0.87,139.79,139.78,13.46305757]
[1764312759134,0.2,139.79,139.78,13.46305757]
[1764312760048,0.87,139.79,139.78,13.46305757]
[1764312760354,0.2,139.79,139.78,13.46305757]
[1764312760753,0.89,139.79,139.78,13.46305757]
[1764312760956,0.2,139.79,139.78,10.01973671]
[1764312761255,0.89,139.79,139.78,13.46305757]
[1764312762263,0.2,139.79,139.78,13.46305757]
[1764312764343,0.89,139.79,139.78,13.46305757]
[1764312767939,8.04358752,139.79,139.75,3.44332086]
[1764312768144,0.69,139.78,139.75,3.44332086]
[1764312768344,0.69,139.78,139.76,3.44332086]
[1764312770538,0.69,139.78,139.77,3.44332086]
[1764312770752,0.2,139.79,139.77,3.44332086]
[1764312770943,0.2,139.79,139.78,3.44332086]
[1764312771452,0.89,139.79,139.78,3.44332086]
[1764312779144,0.89,139.79,139.78,10.59742015]
[1764312780464,0.89,139.79,139.78,3.44332086]
[1764312781249,8.04371217,139.79,139.75,3.44332086]
[1764312781462,0.69,139.78,139.76,3.44332086]
[1764312784055,0.69,139.78,139.77,3.44332086]
[1764312785159,3.83,139.78,139.77,3.44332086]
[1764312788052,3.83,139.78,139.76,3.44332086]
[1764312788253,0.69,139.77,139.76,3.44332086]
[1764312802674,0.69,139.77,139.75,16.308864]
[1764312802989,0.28432314,139.75,139.72,3.44332086]
[1764312803204,3.14,139.74,139.72,3.44332086]
[1764312803379,3.83,139.74,139.72,3.44332086]
[1764312803581,0.69,139.73,139.71,3.44332086]
[1764312805190,0.69,139.73,139.72,3.44332086]
[1764312810599,0.69,139.73,139.72,2.20454357]
[1764312817574,3.83,139.73,139.72,2.20454357]
[1764312821906,3.14,139.73,139.72,2.20454357]
[1764312822507,3.84,139.73,139.72,2.20454357]
[1764312825409,3.84,139.73,139.71,2.20454357]
[1764312825607,0.7,139.72,139.7,9.36255095]
[1764312826205,0.7,139.72,139.71,2.20454357]
[1764312827508,3.14,139.73,139.71,9.36219509]
[1764312827726,3.14,139.73,139.72,2.20454357]
[1764312829118,3.84,139.73,139.72,2.20454357]
[1764312830326,3.84,139.73,139.71,2.20454357]
[1764312832921,3.14,139.73,139.71,9.3620818]
[1764312833118,0.7,139.72,139.71,9.3620818]
[1764312833306,3.84,139.73,139.71,9.3620818]
[1764312833722,26.69823719,139.76,139.71,9.3620818]
[1764312833723,0.7,139.76,139.74,16.308864]
[1764312834029,3.84,139.76,139.74,18.51340757]
[1764312834225,3.84,139.76,139.75,2.20454357]
[1764312834822,3.14,139.76,139.75,2.20454357]
[1764312835020,3.84,139.76,139.75,2.20454357]
[1764312837909,3.84,139.76,139.74,25.66910533]
[1764312838310,3.84,139.76,139.74,23.46456176]
[1764312838504,3.84,139.76,139.74,25.66910533]
[1764312840698,3.84,139.76,139.75,2.20454357]
[1764312840699,3.14,139.76,139.75,2.20454357]
[1764312841098,3.14,139.76,139.75,25.66904263]
[1764312845208,3.84,139.76,139.75,25.66904263]
[1764312847333,3.14,139.76,139.75,25.66904263]
[1764312847922,3.84,139.76,139.75,25.66904263]
[1764312853336,3.84,139.76,139.75,23.46449906]
[1764312853520,12.93426806,139.76,139.69,2.20454357]
[1764312853726,12.93426806,139.76,139.69,7.15862344]
[1764312853727,9.78426806,139.75,139.69,7.15862344]
[1764312854054,9.78426806,139.75,139.69,25.67203101]
[1764312854349,0.69,139.74,139.69,25.67203101]
[1764312854942,0.69,139.74,139.71,2.20454357]
[1764312856054,0.69,139.74,139.7,2.20454357]
[1764312856349,0.69,139.74,139.7,9.36251666]
[1764312860228,0.69,139.74,139.71,2.20454357]
[1764312861036,7.84621899,139.74,139.71,2.20454357]
[1764312861235,0.69,139.73,139.71,2.20454357]
[1764312862644,0.69,139.73,139.71,9.36217173]
[1764312867554,0.69,139.73,139.72,2.20454357]
[1764312871252,0.69,139.73,139.72,9.36171505]
[1764312871426,0.69,139.73,139.71,9.36199397]
[1764312872647,0.69,139.73,139.71,10.60258004]
[1764312873157,0.69,139.73,139.71,7.1574504]
[1764312873451,0.69,139.73,139.71,3.44512964]
[1764312874756,0.69,139.73,139.7,7.15819613]
[1764312874951,0.69,139.73,139.71,3.44512964]
[1764312875851,0.69,139.73,139.71,10.60280275]
[1764312882963,0.69,139.73,139.7,7.15819613]
[1764312883160,0.69,139.73,139.7,10.60332577]
[1764312884244,0.69,139.73,139.71,3.44512964]
[1764312885077,0.69,139.73,139.7,10.60332577]
[1764312889170,3.83,139.73,139.7,10.60332577]
[1764312890274,3.83,139.73,139.71,3.44512964]
[1764312890457,0.71,139.72,139.71,3.44512964]
[1764312893575,0.71,139.72,139.7,10.60332577]
[1764312896577,0.71,139.72,139.71,3.44512964]
[1764312898249,0.71,139.72,139.7,7.15819613]
[1764312898571,0.71,139.72,139.71,16.308864]
[1764312902378,0.71,139.72,139.7,10.60329157]
[1764312902569,0.71,139.72,139.7,7.15816193]
[1764312902762,0.71,139.72,139.71,16.308864]
[1764312905665,3.14,139.73,139.71,26.91167741]
[1764312905872,0.71,139.72,139.71,26.91167741]
[1764312907989,3.14,139.73,139.71,26.91167741]
[1764312908190,3.14,139.73,139.72,3.44512964]
[1764312908886,0.71,139.75,139.72,3.44512964]
[1764312909077,0.71,139.75,139.74,3.44512964]
[1764312909273,0.71,139.75,139.73,3.44512964]
[1764312910190,0.71,139.75,139.73,10.60167857]
[1764312916174,0.71,139.75,139.74,3.44512964]
[1764312918494,0.71,139.75,139.73,10.60167857]
[1764312930413,0.71,139.75,139.73,3.44512964]
[1764312933916,0.71,139.75,139.73,10.60176174]
[1764312934291,0.71,139.75,139.74,3.44512964]
[1764312934492,0.71,139.75,139.74,2.20402341]
[1764312943309,3.14,139.76,139.74,9.46017054]
[1764312943508,3.14,139.76,139.75,25.76852247]
[1764312943907,3.14,139.76,139.75,25.66852247]
[1764312944116,3.14,139.76,139.75,32.823365]
[1764312947811,0.71,139.78,139.75,32.923365]
[1764312948010,3.34,139.79,139.77,2.20402341]
[1764312948198,4.05,139.79,139.78,2.20402341]
[1764312948404,3.34,139.79,139.78,2.20402341]
[1764312948799,4.05,139.79,139.78,2.20402341]
[1764312949413,4.05,139.79,139.78,13.89120596]
[1764312949735,3.34,139.79,139.78,13.89120596]
[1764312950528,3.34,139.79,139.78,21.04530525]
[1764312950822,3.34,139.79,139.78,21.14530525]
[1764312951121,3.34,139.79,139.78,21.04530525]
[1764312951804,0.2,139.79,139.78,21.04530525]
[1764312963322,0.2,139.79,139.78,18.84128184]
[1764312963517,0.91,139.79,139.78,21.04530525]
[1764312967641,0.2,139.79,139.78,21.04530525]
[1764312969535,0.91,139.79,139.78,21.04530525]
[1764312970336,0.2,139.79,139.78,21.04530525]
[1764312970944,0.2,139.79,139.78,9.3581227]
[1764312977955,0.88,139.79,139.78,16.308864]
[1764312978252,0.88,139.79,139.78,18.51288741]
[1764312979044,0.88,139.79,139.78,16.308864]
[1764312980960,0.88,139.79,139.78,23.46296329]
[1764312983157,0.88,139.79,139.78,25.6669867]
[1764312991946,0.88,139.79,139.78,16.308864]
[1764312995061,0.88,139.79,139.77,23.46337643]
[1764312995367,0.68,139.78,139.77,23.46337643]
[1764312996267,0.2,139.79,139.77,26.90543182]
[1764312996444,0.2,139.79,139.78,3.44205539]
[1764312996739,0.2,139.79,139.77,26.90543182]
[1764312996966,0.88,139.79,139.77,26.90543182]
[1764312998960,0.2,139.79,139.78,3.44205539]
[1764313000946,0.2,139.79,139.78,26.90501868]
[1764313006372,0.89,139.79,139.78,26.90501868]
[1764313007068,0.89,139.79,139.78,19.75091939]
[1764313007874,0.89,139.79,139.73,7.15665927]
[1764313007875,0.28432314,139.78,139.73,7.15665927]
[1764313008054,3.14,139.77,139.73,10.59871466]
[1764313008254,3.14,139.77,139.73,26.90757866]
[1764313008455,0.69,139.76,139.75,16.308864]
[1764313009172,0.69,139.76,139.73,3.44205539]
[1764313009476,0.69,139.76,139.75,16.308864]
[1764313011251,8.1294462,139.76,139.75,16.308864]
[1764313011452,8.80994492,139.75,139.69,7.15819941]
[1764313011655,0.28432314,139.73,139.68,3.44205539]
[1764313011857,3.83,139.72,139.69,19.75091939]
[1764313012310,0.69,139.71,139.69,19.75091939]
[1764313012453,0.69,139.71,139.7,16.308864]
[1764313013262,0.69,139.71,139.7,19.75091939]
[1764313020474,0.69,139.71,139.7,16.308864]
[1764313022985,0.69,139.71,139.7,19.75091939]
[1764313025992,0.69,139.71,139.7,16.308864]
[1764313028290,0.69,139.71,139.7,19.75091939]
[1764313032203,0.69,139.71,139.7,16.308864]
[1764313032384,20.38400722,139.71,139.66,16.308864]
[1764313032695,20.38400722,139.71,139.61,10.40276037]
[1764313032696,0.28432314,139.66,139.61,3.54205539]
[1764313032903,3.42432314,139.65,139.61,3.54205539]
[1764313033205,4.12432314,139.65,139.61,11.37482893]
[1764313034401,4.12432314,139.65,139.61,27.68369293]
[1764313034826,3.42432314,139.65,139.61,27.68369293]
[1764313035006,0.7,139.64,139.63,16.308864]
[1764313035379,0.7,139.64,139.61,0.1]
[1764313035578,0.7,139.64,139.61,3.54205539]
[1764313036611,7.86145272,139.64,139.61,0.1]
[1764313036778,0.7,139.64,139.61,3.54205539]
[1764313036985,0.67,139.63,139.61,3.54205539]
[1764313037905,0.67,139.63,139.61,16.408864]
[1764313039201,0.95432314,139.63,139.61,16.408864]
[1764313040210,3.14,139.62,139.61,16.408864]
[1764313040700,3.14,139.62,139.61,19.85091939]
[1764313040889,3.14,139.62,139.61,3.54205539]
[1764313042320,3.14,139.62,139.61,0.1]
[1764313042508,3.81,139.62,139.61,3.54205539]
[1764313044007,4.09432314,139.62,139.61,16.408864]
[1764313044611,11.2566208,139.62,139.61,0.1]
[1764313045313,4.09432314,139.62,139.61,0.1]
[1764313050415,11.2566208,139.62,139.61,0.1]
[1764313052606,4.09432314,139.62,139.61,0.1]
[1764313054590,3.14,139.62,139.61,0.1]
[1764313054795,3.14,139.62,139.61,20.53091939]
[1764313055511,3.14,139.62,139.61,27.69373007]
[1764313055710,3.14,139.62,139.61,27.60873007]
[1764313055910,3.14,139.62,139.61,27.57373007]
[1764313056502,3.14,139.62,139.61,26.33927046]
[1764313057607,3.14,139.62,139.61,24.13167468]
[1764313057810,3.14,139.62,139.61,26.33927046]
[1764313058908,7.44486301,139.66,139.61,26.33927046]
[1764313058909,3.42432314,139.66,139.61,26.33927046]
[1764313059103,4.09432314,139.66,139.64,2.20759578]
[1764313059621,0.67,139.65,139.64,2.20759578]
[1764313061606,0.67,139.65,139.63,9.36929557]
[1764313063030,0.67,139.65,139.64,2.20759578]
[1764313063219,3.42432314,139.66,139.64,2.20759578]
[1764313063416,0.67,139.65,139.63,9.36929557]
[1764313064425,0.67,139.65,139.62,2.20759578]
[1764313064626,0.67,139.65,139.62,9.36986726]
[1764313064926,0.67,139.65,139.62,10.06986726]
[1764313066440,0.67,139.65,139.63,2.20759578]
[1764313068208,0.67,139.65,139.63,9.36934973]
[1764313068606,0.67,139.65,139.63,2.20759578]
[1764313070829,3.14,139.66,139.64,2.20759578]
[1764313071010,10.97025877,139.66,139.64,2.20759578]
[1764313071535,0.67,139.65,139.64,2.20759578]
[1764313072130,0.67,139.65,139.63,2.20759578]
[1764313073522,0.67,139.65,139.63,9.36927293]
[1764313077717,0.67,139.65,139.62,10.06967341]
[1764313078411,0.67,139.65,139.63,2.20759578]
[1764313080443,0.67,139.65,139.63,9.36923371]
[1764313088723,0.67,139.65,139.63,7.16163793]
[1764313088928,0.67,139.65,139.63,9.36923371]
[1764313089837,0.67,139.65,139.63,7.16163793]
[1764313090234,0.95432314,139.65,139.62,16.308864]
[1764313090455,0.28432314,139.63,139.6,0.1]
[1764313090632,3.14,139.62,139.6,0.1]
[1764313090833,3.85,139.62,139.6,0.1]
[1764313091034,0.71,139.61,139.6,0.1]
[1764313091242,0.71,139.61,139.6,16.408864]
[1764313091848,0.71,139.61,139.6,0.1]
[1764313095546,3.14,139.62,139.6,3.02759578]
[1764313096058,3.84,139.62,139.6,2.30759578]
[1764313098955,3.14,139.62,139.6,0.1]
[1764313099163,0.7,139.61,139.6,0.1]
[1764313109675,0.7,139.61,139.6,2.30759578]
[1764313110704,3.14,139.62,139.6,2.30759578]
[1764313110891,3.84,139.62,139.6,2.30759578]
[1764313111090,0.7,139.61,139.6,2.30759578]
[1764313112504,3.14,139.62,139.6,2.30759578]
[1764313112505,3.84,139.62,139.6,2.30759578]
[1764313113497,3.14,139.62,139.6,2.30759578]
[1764313113808,3.84,139.62,139.6,2.30759578]
[1764313114709,3.14,139.62,139.6,2.30759578]
[1764313114893,0.7,139.61,139.6,2.30759578]
[1764313116508,0.7,139.61,139.6,0.1]
[1764313116715,0.7,139.61,139.6,3.55054977]
[1764313119116,0.7,139.61,139.6,0.1]
[1764313119318,0.7,139.61,139.6,3.55054977]
[1764313119618,0.7,139.61,139.6,0.1]
[1764313119910,0.7,139.61,139.6,3.55054977]
[1764313121016,0.7,139.61,139.6,0.1]
[1764313121314,0.7,139.61,139.6,3.55054977]
[1764313126150,0.7,139.61,139.6,0.1]
[1764313130341,0.7,139.61,139.6,3.55054977]
[1764313131026,0.7,139.61,139.6,0.1]
[1764313136255,0.7,139.61,139.6,3.55054977]
[1764313137153,0.7,139.61,139.6,0.1]
[1764313139863,0.7,139.61,139.6,3.55054977]
[1764313140669,0.7,139.61,139.6,0.1]
[1764313141043,8.14713382,139.61,139.6,0.1]
[1764313141968,0.98432314,139.61,139.6,0.1]
[1764313159380,3.14,139.61,139.6,4.21054977]
[1764313162479,3.14,139.61,139.6,0.76]
[1764313162684,3.14,139.61,139.6,4.21054977]
[1764313165264,3.14,139.61,139.6,3.55054977]
[1764313169793,3.82,139.61,139.6,3.55054977]
[1764313170374,3.14,139.61,139.6,0.1]
[1764313173294,3.14,139.61,139.6,3.55054977]
[1764313174576,3.82,139.61,139.6,3.55054977]
[1764313175100,3.14,139.61,139.6,3.55054977]
[1764313175685,3.14,139.61,139.6,0.1]
[1764313177700,3.82,139.61,139.6,0.1]
[1764313177993,11.26713382,139.61,139.6,0.1]
[1764313178386,23.52762851,139.61,139.6,0.1]
[1764313178592,22.28700953,139.61,139.6,0.1]
[1764313179390,25.15717061,139.61,139.6,0.1]
[1764313180699,22.28700953,139.61,139.6,0.1]
[1764313181223,20.07707874,139.61,139.6,0.1]
[1764313187916,22.94723982,139.61,139.6,0.1]
[1764313189913,25.15717061,139.61,139.6,0.1]
[1764313192817,22.94723982,139.61,139.6,0.1]
[1764313195821,25.15717061,139.61,139.6,0.1]
[1764313207936,25.15717061,139.61,139.6,1e-08]
[1764313220456,24.47717061,139.61,139.6,1e-08]
[1764313221041,25.17717061,139.61,139.6,1e-08]
[1764313222960,19.1127556,139.61,139.6,0.71000001]
[1764313223130,19.25491717,139.61,139.6,0.71000001]
[1764313223551,19.39707874,139.61,139.6,1e-08]
[1764313224054,22.30700953,139.61,139.6,1e-08]
[1764313224856,25.17778858,139.61,139.6,1e-08]
[1764313225857,25.03562701,139.61,139.6,1e-08]
[1764313226062,25.17778858,139.61,139.6,1e-08]
[1764313226354,25.03562701,139.61,139.6,1e-08]
[1764313226560,25.17778858,139.61,139.6,1e-08]
[1764313229438,25.17778858,139.61,139.59,1e-08]
[1764313229642,12.00419885,139.6,139.59,1e-08]
[1764313230077,19.16752263,139.6,139.59,1e-08]
[1764313230670,35.47638663,139.6,139.59,1e-08]
[1764313233199,38.34778392,139.6,139.59,1e-08]
[1764313234067,25.40313206,139.58,139.57,0.1]
[1764313234379,30.75306285,139.58,139.57,0.1]
[1764313234578,34.32446014,139.58,139.57,0.1]
[1764313235581,41.48881033,139.58,139.57,0.1]
[1764313237286,41.48881033,139.58,139.57,1e-08]
[1764313237484,43.69874112,139.58,139.57,1e-08]
[1764313240581,42.73426547,139.58,139.57,1e-08]
[1764313243199,46.1896514,139.58,139.57,1e-08]
[1764313247610,67.7296514,139.58,139.57,1e-08]
[1764313247818,46.1896514,139.58,139.57,1e-08]
[1764313252643,9.80426806,139.57,139.56,1e-08]
[1764313252843,13.25965399,139.57,139.56,1e-08]
[1764313253337,16.13146358,139.57,139.56,1e-08]
[1764313254637,23.29632708,139.57,139.56,1e-08]
[1764313257637,44.83632708,139.57,139.56,1e-08]
[1764313257842,23.29632708,139.57,139.56,1e-08]
[1764313261450,18.84661801,139.57,139.56,0.69000001]
[1764313261638,3.14,139.57,139.56,0.69000001]
[1764313261835,3.42432314,139.57,139.56,0.69000001]
[1764313262164,10.3048635,139.57,139.56,0.69000001]
[1764313262660,3.42432314,139.57,139.56,0.69000001]
[1764313262844,3.14,139.57,139.56,0.69000001]
[1764313263045,3.42432314,139.57,139.56,0.69000001]
[1764313263242,3.14,139.57,139.56,0.69000001]
[1764313263826,3.14,139.57,139.56,4.14538594]
[1764313264352,3.14,139.57,139.56,0.69000001]
[1764313264533,3.14,139.57,139.56,11.31076283]
[1764313266529,3.14,139.57,139.56,0.69000001]
[1764313266530,10.58918664,139.57,139.56,0.69000001]
[1764313266835,3.42432314,139.57,139.56,0.69000001]
[1764313271869,3.14,139.57,139.56,0.69000001]
[1764313272165,3.14,139.57,139.56,11.31040561]
[1764313275276,0.28432314,139.6,139.56,11.31040561]
[1764313275445,3.14,139.59,139.58,3.45538593]
[1764313275851,3.14,139.59,139.58,4.15538593]
[1764313276967,3.14,139.59,139.58,11.31973612]
[1764313284384,15.97070396,139.65,139.58,32.68599753]
[1764313284548,3.14,139.64,139.6,3.45538593]
[1764313284872,0.28432314,139.63,139.6,3.45538593]
[1764313285047,0.28432314,139.63,139.61,0.7]
[1764313286542,0.28432314,139.63,139.61,7.86279815]
[1764313286748,0.28432314,139.63,139.62,0.7]
[1764313287348,3.14,139.64,139.62,4.15538593]
[1764313287549,3.14,139.64,139.63,3.45538593]
[1764313287859,3.14,139.64,139.63,4.15538593]
[1764313288580,3.14,139.64,139.63,11.31717064]
[1764313289067,3.14,139.64,139.63,19.17692047]
[1764313289268,0.7,139.68,139.63,35.48578447]
[1764313289443,3.14,139.67,139.64,4.15538593]
[1764313289647,3.14,139.67,139.65,0.7]
[1764313291284,3.14,139.67,139.66,3.45538593]
[1764313291576,3.14,139.67,139.66,10.61563224]
[1764313291760,3.14,139.67,139.66,11.31563224]
[1764313294462,0.28432314,139.7,139.66,29.21624802]
[1764313294660,3.28216157,139.7,139.68,3.45538593]
[1764313295077,3.28216157,139.7,139.68,4.15538593]
[1764313295757,3.14,139.7,139.68,3.45538593]
[1764313295961,0.7,139.69,139.66,17.008864]
[1764313296163,0.98432314,139.69,139.66,16.308864]
[1764313296367,8.1430348,139.69,139.66,16.308864]
[1764313296564,0.7,139.68,139.66,16.308864]
[1764313296965,0.7,139.68,139.64,25.07023216]
[1764313297359,0.7,139.68,139.65,0.7]
[1764313298077,10.89842073,139.69,139.65,11.31592144]
[1764313298078,0.28432314,139.69,139.65,11.31592144]
[1764313298262,0.98432314,139.69,139.65,11.31592144]
[1764313298454,0.98432314,139.69,139.65,7.86053551]
[1764313298455,0.28432314,139.69,139.65,7.86053551]
[1764313298659,0.7,139.68,139.65,7.86053551]